bitfinex/quotes_SOLUSD_20220130
["timestamp","ask_amount","ask_price","bid_price","bid_amount"]
[1643557571947,15.767,95.19,95.136,0.45]
[1643557572149,15.767,95.19,95.136,0.25]
[1643557572349,0.25,95.189,95.135,0.45]
[1643557573349,15.772,95.18,95.135,0.45]
[1643557573549,0.25,95.207,95.135,0.45]
[1643557574749,15.768,95.19,95.135,0.45]
[1643557575151,0.25,95.189,95.135,0.45]
[1643557575552,0.25,95.189,95.135,0.2]
[1643557575953,15.771,95.18,95.135,0.2]
[1643557576351,0.25,95.179,95.135,0.2]
[1643557576553,0.25,95.179,95.144,6.0]
[1643557576953,0.25,95.179,95.145,0.25]
[1643557578752,15.771,95.18,95.145,0.25]
[1643557579354,15.771,95.18,95.135,0.45]
[1643557580254,0.25,95.179,95.135,0.45]
[1643557582058,15.768,95.19,95.144,6.0]
[1643557582258,15.768,95.19,95.145,23.3916]
[1643557582457,15.768,95.19,95.15,6.0]
[1643557582756,15.768,95.19,95.155,6.0]
[1643557582956,38.78706999,95.189,95.146,0.2]
[1643557587362,38.78706999,95.189,95.15,15.766]
[1643557587562,38.78706999,95.189,95.151,0.2]
[1643557587764,0.25,95.188,95.151,0.2]
[1643557588162,0.25,95.188,95.146,0.2]
[1643557588565,0.25,95.188,95.146,0.45]
[1643557589162,38.78706999,95.189,95.146,0.45]
[1643557589562,15.769,95.18,95.146,0.45]
[1643557592162,0.25,95.179,95.146,0.45]
[1643557593968,15.769,95.18,95.146,0.45]
[1643557594170,67.697,95.22,95.146,0.45]
[1643557594372,24.95,95.214,95.155,6.0]
[1643557594571,24.95,95.214,95.156,23.1859]
[1643557594774,24.95,95.214,95.157,0.2]
[1643557595070,43.03738862,95.213,95.157,0.2]
[1643557595271,15.767,95.2,95.157,0.2]
[1643557595670,0.25,95.199,95.157,0.2]
[1643557595870,0.25,95.199,95.166,6.0]
[1643557596274,0.25,95.199,95.157,0.2]
[1643557596472,15.768,95.19,95.157,0.2]
[1643557596873,0.25,95.189,95.157,0.2]
[1643557599277,0.25,95.189,95.141,0.45]
[1643557599677,0.25,95.189,95.15,6.0]
[1643557599879,0.25,95.189,95.151,0.25]
[1643557600884,0.25,95.189,95.151,6.25]
[1643557601104,0.25,95.189,95.151,6.45]
[1643557601303,0.25,95.189,95.151,6.25]
[1643557602304,1.45962049,95.22,95.151,6.25]
[1643557602514,1.45962049,95.22,95.152,26.33372277]
[1643557602705,15.14,95.23,95.152,26.33372277]
[1643557602706,1.45962049,95.248,95.162,1.43736121]
[1643557602905,1.45962049,95.248,95.163,0.25]
[1643557603106,1.45962049,95.256,95.163,27.32175281]
[1643557603305,39.1279307,95.247,95.173,1.43736121]
[1643557603504,39.1279307,95.247,95.18,15.758]
[1643557603704,39.1279307,95.247,95.183,6.0]
[1643557603905,39.1279307,95.247,95.19,6.0]
[1643557604107,39.1279307,95.247,95.191,6.0]
[1643557604306,39.1279307,95.247,95.192,0.25]
[1643557604605,39.1279307,95.247,95.191,6.0]
[1643557604606,0.25,95.246,95.191,6.0]
[1643557605406,105.15,95.246,95.191,6.0]
[1643557605807,0.25,95.246,95.192,0.25]
[1643557606008,0.25,95.246,95.192,22.8733]
[1643557606212,0.25,95.246,95.193,0.2]
[1643557606507,39.1279307,95.247,95.202,6.0]
[1643557606713,0.25,95.246,95.193,0.2]
[1643557606907,39.1279307,95.247,95.202,6.0]
[1643557607108,0.25,95.246,95.202,6.0]
[1643557607509,0.25,95.246,95.181,6.0]
[1643557607914,15.762,95.24,95.182,0.25]
[1643557608113,0.25,95.246,95.182,0.25]
[1643557608315,39.1279307,95.247,95.182,24.1572]
[1643557608516,39.1279307,95.247,95.192,6.0]
[1643557608811,0.25,95.246,95.192,6.0]
[1643557609011,39.1279307,95.247,95.192,6.0]
[1643557609317,39.1279307,95.247,95.193,24.7066]
[1643557609510,39.1279307,95.247,95.203,6.0]
[1643557609711,39.1279307,95.247,95.204,0.25]
[1643557610211,15.759,95.26,95.204,24.7763]
[1643557610411,0.25,95.259,95.205,0.2]
[1643557610610,15.759,95.26,95.214,6.0]
[1643557610812,15.759,95.26,95.215,22.8887]
[1643557611017,22.6665,95.268,95.225,6.0]
[1643557611212,41.87389622,95.28,95.225,6.0]
[1643557611413,41.87389622,95.28,95.226,0.25]
[1643557611815,41.87389622,95.28,95.221,0.2]
[1643557612013,41.87389622,95.28,95.225,6.0]
[1643557612212,41.87389622,95.28,95.226,23.1433]
[1643557612213,57.62889622,95.28,95.226,23.1433]
[1643557612414,0.25,95.279,95.227,0.2]
[1643557612912,0.25,95.279,95.236,6.0]
[1643557613312,15.757,95.27,95.227,0.2]
[1643557613517,129.4649,95.269,95.201,24.0201]
[1643557613715,24.8149,95.269,95.202,0.2]
[1643557615816,24.8149,95.269,95.21,15.756]
[1643557616016,24.8149,95.269,95.211,0.2]
[1643557616316,24.8149,95.269,95.211,0.45]
[1643557617117,24.8149,95.269,95.211,6.25]
[1643557617318,24.8149,95.269,95.212,0.25]
[1643557617518,24.8149,95.269,95.212,6.25]
[1643557617718,24.8149,95.269,95.212,6.45]
[1643557617919,24.8149,95.269,95.213,22.7776]
[1643557618119,15.758,95.26,95.214,0.2]
[1643557618319,105.15,95.259,95.214,0.2]
[1643557618724,0.25,95.259,95.214,0.2]
[1643557619322,0.25,95.268,95.214,0.2]
[1643557619953,0.25,95.268,95.201,6.0]
[1643557620153,0.25,95.268,95.202,6.0]
[1643557620154,15.758,95.26,95.202,6.0]
[1643557620360,15.758,95.26,95.202,6.45]
[1643557620653,15.758,95.26,95.202,6.25]
[1643557620854,15.758,95.26,95.203,23.7559]
[1643557621055,15.758,95.26,95.213,6.0]
[1643557621856,15.761,95.25,95.213,6.0]
[1643557622057,43.18972305,95.249,95.201,6.0]
[1643557622255,43.18972305,95.249,95.19,6.0]
[1643557622455,23.9365,95.248,95.19,6.0]
[1643557622856,23.9365,95.248,95.191,6.0]
[1643557623056,23.9365,95.248,95.191,6.2]
[1643557623257,23.9365,95.248,95.191,6.0]
[1643557623858,23.9365,95.248,95.192,0.25]
[1643557624059,23.9365,95.248,95.2,6.0]
[1643557624258,23.9365,95.248,95.201,30.432]
[1643557624459,23.9365,95.248,95.202,0.2]
[1643557624663,23.9365,95.248,95.211,6.0]
[1643557624860,15.762,95.24,95.202,0.2]
[1643557625159,15.762,95.24,95.13,115.04526217]
[1643557625160,15.762,95.24,95.176,6.0]
[1643557625360,43.18972305,95.249,95.177,0.25]
[1643557625660,43.18972305,95.249,95.177,6.25]
[1643557625861,43.18972305,95.249,95.178,23.3711]
[1643557626060,43.18972305,95.249,95.188,6.0]
[1643557626360,43.18972305,95.249,95.189,22.7847]
[1643557626562,43.18972305,95.249,95.199,6.0]
[1643557627365,43.18972305,95.249,95.176,6.0]
[1643557627562,43.18972305,95.249,95.177,6.0]
[1643557627763,104.9,95.248,95.177,6.45]
[1643557627963,104.9,95.248,95.177,6.25]
[1643557628566,43.18972305,95.249,95.177,6.25]
[1643557628567,15.762,95.24,95.177,6.25]
[1643557628767,43.18972305,95.249,95.178,24.5995]
[1643557628969,0.25,95.239,95.179,0.2]
[1643557629166,43.18972305,95.249,95.188,6.0]
[1643557629367,43.18972305,95.249,95.189,23.4326]
[1643557629568,43.18972305,95.249,95.199,6.0]
[1643557630168,43.18972305,95.249,95.2,6.0]
[1643557630369,43.18972305,95.249,95.2,6.2]
[1643557630568,43.18972305,95.249,95.2,6.0]
[1643557631070,43.18972305,95.249,95.191,0.2]
[1643557631270,43.18972305,95.249,95.191,0.45]
[1643557631569,148.08972305,95.249,95.191,0.25]
[1643557632273,148.08972305,95.249,95.19,0.45]
[1643557632671,0.25,95.248,95.19,0.45]
[1643557633075,15.761,95.24,95.19,0.45]
[1643557633478,104.9,95.239,95.19,0.45]
[1643557634375,15.761,95.24,95.19,0.45]
[1643557634575,15.763,95.23,95.19,0.45]
[1643557634780,104.9,95.241,95.171,0.45]
[1643557634975,104.9,95.241,95.18,6.0]
[1643557635375,104.9,95.241,95.181,0.25]
[1643557635777,104.9,95.239,95.181,0.25]
[1643557636277,38.3118,95.24,95.181,0.25]
[1643557636278,38.3118,95.24,95.181,6.25]
[1643557636477,104.9,95.239,95.181,6.45]
[1643557636679,104.9,95.239,95.181,6.25]
[1643557637282,0.25,95.238,95.181,6.25]
[1643557637880,0.25,95.239,95.181,6.25]
[1643557638281,0.25,95.239,95.182,23.0407]
[1643557638499,0.25,95.239,95.183,0.2]
[1643557638701,0.25,95.239,95.192,6.0]
[1643557638901,0.25,95.239,95.193,0.25]
[1643557639300,0.25,95.239,95.193,11.75]
[1643557639504,0.25,95.239,95.194,0.2]
[1643557639803,0.25,95.239,95.203,6.0]
[1643557640204,0.25,95.239,95.192,6.0]
[1643557641803,0.25,95.239,95.193,0.25]
[1643557642903,0.25,95.239,95.193,23.8302]
[1643557643103,0.25,95.239,95.203,6.0]
[1643557644809,148.08972305,95.249,95.203,6.0]
[1643557645207,0.25,95.248,95.203,6.0]
[1643557645910,0.25,95.248,95.204,24.3522]
[1643557646109,0.25,95.248,95.214,6.0]
[1643557647708,24.5138,95.259,95.215,0.25]
[1643557647910,1.45962049,95.269,95.215,23.7265]
[1643557648110,24.0329,95.31,95.225,6.0]
[1643557648111,1.45962049,95.291,95.225,6.0]
[1643557648310,15.754,95.29,95.226,23.7265]
[1643557648510,15.754,95.29,95.236,6.0]
[1643557648716,39.29201699,95.289,95.236,6.0]
[1643557648916,0.25,95.288,95.236,6.0]
[1643557649116,105.15,95.288,95.201,1.63736121]
[1643557649311,15.755,95.28,95.194,24.50496121]
[1643557649512,104.9,95.279,95.204,6.0]
[1643557649814,104.9,95.279,95.204,6.2]
[1643557650012,104.9,95.279,95.205,23.4804]
[1643557650214,104.9,95.279,95.206,0.2]
[1643557650413,104.9,95.269,95.206,0.2]
[1643557650813,104.9,95.269,95.206,0.45]
[1643557651013,104.9,95.269,95.215,6.0]
[1643557651616,15.76,95.26,95.215,6.0]
[1643557651816,150.32600024,95.259,95.215,6.0]
[1643557653017,45.42600024,95.259,95.215,6.0]
[1643557653418,45.42600024,95.259,95.216,0.25]
[1643557653717,15.76,95.26,95.215,6.0]
[1643557653917,15.76,95.26,95.206,0.2]
[1643557654119,23.5807,95.268,95.206,0.45]
[1643557654318,23.5807,95.268,95.21,15.756]
[1643557654519,23.5807,95.268,95.211,0.2]
[1643557654723,34.92246692,95.267,95.211,0.45]
[1643557655120,34.92246692,95.267,95.211,0.25]
[1643557655522,15.758,95.26,95.206,0.2]
[1643557656822,15.758,95.26,95.215,6.0]
[1643557657222,15.758,95.26,95.216,0.25]
[1643557657424,15.758,95.26,95.206,0.45]
[1643557657622,104.9,95.259,95.206,0.45]
[1643557657823,15.758,95.26,95.206,0.45]
[1643557658421,105.15,95.259,95.215,6.0]
[1643557658821,15.759,95.25,95.215,6.0]
[1643557660026,105.15,95.259,95.215,6.0]
[1643557660424,0.25,95.259,95.216,0.25]
[1643557661024,34.92246692,95.267,95.216,0.25]
[1643557661225,34.92246692,95.267,95.216,25.0001]
[1643557661528,34.92246692,95.267,95.226,6.0]
[1643557661924,34.92246692,95.267,95.227,0.25]
[1643557662225,34.92246692,95.267,95.217,0.2]
[1643557663426,34.92246692,95.267,95.217,0.45]
[1643557665628,34.92246692,95.267,95.217,0.2]
[1643557665828,104.9,95.266,95.217,0.2]
[1643557666027,34.92246692,95.267,95.217,0.2]
[1643557667028,34.92246692,95.267,95.217,0.45]
[1643557670032,34.92246692,95.267,95.217,0.2]
[1643557670233,23.0209,95.266,95.22,6.0]
[1643557670436,23.0209,95.266,95.204,6.0]
[1643557670634,23.0209,95.266,95.205,6.0]
[1643557671036,15.759,95.26,95.205,6.0]
[1643557671435,23.0209,95.266,95.206,0.25]
[1643557671639,34.92246692,95.267,95.206,0.25]
[1643557671848,34.92246692,95.267,95.206,25.1086]
[1643557672048,34.92246692,95.267,95.216,6.0]
[1643557672264,34.92246692,95.267,95.217,0.25]
[1643557672465,34.92246692,95.267,95.22,6.0]
[1643557673164,34.92246692,95.267,95.216,6.0]
[1643557673365,15.759,95.26,95.217,24.1437]
[1643557673567,15.759,95.26,95.218,0.2]
[1643557673766,0.25,95.259,95.218,0.2]
[1643557674466,23.4934,95.266,95.218,0.2]
[1643557674467,34.92246692,95.267,95.218,0.45]
[1643557675267,34.92246692,95.267,95.22,15.754]
[1643557675471,34.92246692,95.267,95.221,0.2]
[1643557675867,34.92246692,95.267,95.218,0.2]
[1643557676469,0.25,95.266,95.218,0.2]
[1643557677470,34.92246692,95.267,95.218,0.2]
[1643557677670,34.92246692,95.267,95.227,6.0]
[1643557677872,34.92246692,95.267,95.228,0.25]
[1643557678076,34.92246692,95.267,95.23,6.0]
[1643557678273,34.92246692,95.267,95.231,0.25]
[1643557679373,34.92246692,95.267,95.218,0.2]
[1643557679773,34.92246692,95.267,95.218,0.45]
[1643557679974,34.92246692,95.267,95.227,6.0]
[1643557680374,34.92246692,95.267,95.228,0.25]
[1643557680582,34.92246692,95.267,95.23,6.0]
[1643557680879,1.45962049,95.286,95.231,0.25]
[1643557681087,1.45962049,95.286,95.231,24.8408]
[1643557681278,1.45962049,95.287,95.232,0.2]
[1643557681477,1.45962049,95.287,95.241,6.0]
[1643557681677,39.17118051,95.287,95.241,6.0]
[1643557682886,40.630801,95.287,95.232,0.2]
[1643557683378,40.630801,95.287,95.241,6.0]
[1643557683779,1.45962049,95.293,95.242,0.25]
[1643557683979,1.45962049,95.294,95.242,0.25]
[1643557684579,1.45962049,95.294,95.242,23.1862]
[1643557684779,1.45962049,95.296,95.243,0.2]
[1643557684979,23.1638,95.299,95.243,0.2]
[1643557684980,1.45962049,95.298,95.252,6.0]
[1643557685180,24.62342049,95.299,95.252,6.0]
[1643557685782,38.69244414,95.298,95.252,6.0]
[1643557686782,38.69244414,95.298,95.253,0.25]
[1643557686983,38.69244414,95.298,95.253,24.3733]
[1643557687183,38.69244414,95.298,95.254,0.2]
[1643557687385,38.69244414,95.298,95.263,6.0]
[1643557687683,38.44244414,95.298,95.263,6.0]
[1643557688083,38.44244414,95.298,95.254,0.2]
[1643557688286,24.6333,95.297,95.208,1.43736121]
[1643557688684,1.45962049,95.293,95.203,0.2]
[1643557688883,1.45962049,95.291,95.203,0.2]
[1643557689283,1.45962049,95.294,95.204,2.27975186]
[1643557689485,15.754,95.29,95.22,15.755]
[1643557689785,15.754,95.29,95.221,25.2065]
[1643557689985,15.754,95.29,95.222,0.2]
[1643557690587,15.754,95.29,95.231,6.0]
[1643557690790,15.754,95.29,95.232,22.7874]
[1643557690985,15.754,95.29,95.233,0.2]
[1643557691187,24.6333,95.297,95.233,0.2]
[1643557691390,0.25,95.296,95.233,0.2]
[1643557692386,15.753,95.29,95.233,0.2]
[1643557692787,104.9,95.289,95.233,0.2]
[1643557693290,0.25,95.288,95.216,6.0]
[1643557693688,0.25,95.288,95.217,6.25]
[1643557693890,15.756,95.28,95.217,6.45]
[1643557694089,15.756,95.28,95.218,23.1668]
[1643557694290,15.756,95.28,95.219,0.45]
[1643557694691,22.5628,95.279,95.219,0.45]
[1643557694890,15.757,95.27,95.219,0.45]
[1643557695091,40.52441299,95.269,95.219,0.45]
[1643557696696,40.52441299,95.269,95.22,15.755]
[1643557696896,40.52441299,95.269,95.221,0.45]
[1643557700123,0.25,95.268,95.23,6.0]
[1643557700323,22.5628,95.279,95.23,6.0]
[1643557700623,0.25,95.278,95.23,6.0]
[1643557701129,0.25,95.278,95.23,21.753]
[1643557701324,1.45962049,95.291,95.231,23.2032]
[1643557701523,1.45962049,95.3,95.241,6.0]
[1643557701827,15.14,95.32,95.242,23.3342]
[1643557701828,1.45962049,95.305,95.242,23.3342]
[1643557702122,17.21062049,95.31,95.252,6.0]
[1643557702323,39.55750315,95.309,95.253,23.3342]
[1643557702523,39.55750315,95.309,95.254,0.2]
[1643557703224,38.09788266,95.309,95.254,0.2]
[1643557703622,38.09788266,95.309,95.253,0.25]
[1643557703826,1.70962049,95.308,95.252,6.0]
[1643557704025,1.45962049,95.307,95.241,6.0]
[1643557704225,1.45962049,95.307,95.241,6.2]
[1643557704426,0.25,95.308,95.241,6.2]
[1643557704427,1.45962049,95.306,95.25,6.0]
[1643557704630,0.25,95.308,95.251,6.0]
[1643557704827,0.25,95.308,95.251,0.45]
[1643557705029,0.25,95.308,95.251,0.25]
[1643557705227,0.25,95.308,95.25,6.0]
[1643557705428,0.25,95.308,95.251,0.25]
[1643557706028,0.25,95.308,95.251,23.2627]
[1643557706229,0.25,95.308,95.252,0.2]
[1643557706830,0.25,95.308,95.252,0.45]
[1643557707034,15.752,95.3,95.252,0.2]
[1643557707433,15.752,95.3,95.233,0.2]
[1643557707838,17.21162049,95.3,95.233,0.2]
[1643557708233,1.45962049,95.299,95.24,15.751]
[1643557708433,15.752,95.3,95.242,6.0]
[1643557708938,1.45962049,95.304,95.243,0.25]
[1643557709135,1.45962049,95.307,95.243,0.25]
[1643557709334,1.45962049,95.305,95.243,23.9885]
[1643557709537,1.45962049,95.305,95.253,6.0]
[1643557709834,1.45962049,95.307,95.244,0.2]
[1643557710035,1.45962049,95.304,95.244,0.45]
[1643557710235,1.45962049,95.306,95.244,0.45]
[1643557710437,1.45962049,95.308,95.253,6.0]
[1643557710634,38.09788266,95.309,95.254,24.5816]
[1643557710835,0.25,95.308,95.255,0.2]
[1643557711036,0.25,95.308,95.264,6.0]
[1643557711443,0.25,95.308,95.255,0.2]
[1643557712237,0.25,95.308,95.264,6.0]
[1643557712636,0.25,95.308,95.265,0.25]
[1643557712837,104.9,95.316,95.265,0.25]
[1643557713035,105.15,95.316,95.265,0.25]
[1643557713236,15.752,95.31,95.265,0.25]
[1643557713738,38.01716283,95.309,95.265,0.25]
[1643557716747,38.01716283,95.309,95.265,23.8111]
[1643557716944,1.45962049,95.32,95.266,0.2]
[1643557717144,1.45962049,95.321,95.275,6.0]
[1643557717370,1.45962049,95.331,95.276,23.0914]
[1643557717569,0.25,95.32,95.286,6.0]
[1643557717775,1.45962049,95.329,95.277,0.2]
[1643557717972,15.748,95.32,95.277,0.2]
[1643557718170,24.3065,95.319,95.261,22.7239]
[1643557718370,24.3065,95.319,95.262,0.2]
[1643557718770,1.45962049,95.326,95.271,6.0]
[1643557718972,56.46172357,95.33,95.272,22.5239]
[1643557719173,1.45962049,95.329,95.273,0.2]
[1643557719371,1.45962049,95.328,95.273,0.2]
[1643557719872,1.45962049,95.328,95.273,0.45]
[1643557720072,15.749,95.32,95.273,0.45]
[1643557721473,23.3774,95.329,95.273,0.45]
[1643557721971,0.25,95.328,95.273,0.45]
[1643557722272,0.25,95.328,95.282,6.0]
[1643557722472,1.45962049,95.345,95.283,0.25]
[1643557722772,23.7452,95.377,95.283,0.25]
[1643557722773,1.45962049,95.358,95.29,15.743]
[1643557723073,23.7452,95.357,95.3,6.0]
[1643557723371,23.7452,95.357,95.301,0.25]
[1643557723772,0.25,95.356,95.301,0.25]
[1643557724375,0.25,95.356,95.304,6.0]
[1643557724572,0.25,95.356,95.304,16.43]
[1643557724772,0.25,95.356,95.305,24.2713]
[1643557724972,23.7452,95.357,95.306,0.2]
[1643557726075,23.7452,95.357,95.315,6.0]
[1643557726275,15.741,95.37,95.316,0.25]
[1643557726476,15.741,95.37,95.316,23.7694]
[1643557727075,33.37100272,95.369,95.316,23.7694]
[1643557728778,15.741,95.37,95.316,23.7694]
[1643557729176,24.3528,95.376,95.326,6.0]
[1643557729380,24.3528,95.376,95.327,0.25]
[1643557729578,24.3528,95.376,95.316,23.7694]
[1643557729780,34.79918527,95.375,95.316,23.7694]
[1643557730079,15.739,95.38,95.326,6.0]
[1643557730280,15.14,95.4,95.327,24.1269]
[1643557730479,23.9745,95.402,95.327,24.1269]
[1643557730879,45.72823971,95.401,95.327,24.1269]
[1643557731480,23.9745,95.402,95.327,24.1269]
[1643557731681,1.45962049,95.407,95.337,6.0]
[1643557731883,1.45962049,95.428,95.338,23.8257]
[1643557732080,0.26983088,95.43,95.338,32.10545186]
[1643557732480,0.26983088,95.43,95.339,2.27975186]
[1643557732681,0.26983088,95.43,95.34,15.734]
[1643557732879,0.26983088,95.43,95.349,6.0]
[1643557733080,0.26983088,95.43,95.35,29.617]
[1643557733379,0.26983088,95.43,95.351,0.25]
[1643557734182,0.26983088,95.43,95.35,31.89675186]
[1643557734384,0.26983088,95.43,95.33,2.27975186]
[1643557734581,2.95669142,95.429,95.329,22.9629]
[1643557735184,15.737,95.4,95.329,22.9629]
[1643557735484,62.18411413,95.399,95.329,22.9629]
[1643557735683,62.18411413,95.399,95.33,0.25]
[1643557735883,62.18411413,95.399,95.339,6.0]
[1643557736084,104.9,95.398,95.34,23.134]
[1643557737086,15.737,95.39,95.34,23.134]
[1643557737683,15.737,95.39,95.341,0.25]
[1643557738083,62.18411413,95.399,95.341,0.25]
[1643557738084,37.53771413,95.399,95.341,0.25]
[1643557738283,37.53771413,95.399,95.34,38.868]
[1643557738485,37.53771413,95.399,95.34,23.134]
[1643557738983,104.9,95.398,95.34,23.134]
[1643557739284,15.737,95.39,95.34,23.134]
[1643557739685,15.737,95.39,95.341,0.25]
[1643557739886,37.53771413,95.399,95.341,0.25]
[1643557741088,0.25,95.398,95.341,0.25]
[1643557741288,104.9,95.431,95.341,0.25]
[1643557741289,129.663,95.429,95.341,0.25]
[1643557742093,104.9,95.427,95.341,0.25]
[1643557742290,104.9,95.427,95.35,21.734]
[1643557742691,104.9,95.427,95.351,0.25]
[1643557743089,104.9,95.427,95.351,22.88]
[1643557744793,35.77904851,95.426,95.351,22.88]
[1643557745194,104.9,95.425,95.351,22.88]
[1643557746592,107.85669142,95.425,95.351,22.88]
[1643557747195,104.9,95.425,95.351,22.88]
[1643557749895,45.0289577,95.424,95.351,22.88]
[1643557750195,104.9,95.423,95.351,22.88]
[1643557750393,105.15,95.423,95.351,22.88]
[1643557751696,45.74274448,95.422,95.351,22.88]
[1643557752095,104.9,95.421,95.351,22.88]
[1643557752498,104.9,95.421,95.351,22.63]
[1643557752696,104.9,95.421,95.314,0.2]
[1643557752903,15.14,95.42,95.329,24.0611]
[1643557753897,15.14,95.42,95.314,0.2]
[1643557754098,23.3477,95.419,95.293,1.43736121]
[1643557754301,23.3477,95.419,95.303,6.0]
[1643557754500,1.45962049,95.416,95.304,24.7417]
[1643557754701,1.45962049,95.416,95.305,0.2]
[1643557754903,1.45962049,95.415,95.314,6.0]
[1643557755301,1.45962049,95.415,95.315,0.25]
[1643557755902,1.45962049,95.412,95.315,0.25]
[1643557756103,15.14,95.41,95.315,0.25]
[1643557756503,1.45962049,95.406,95.315,0.25]
[1643557756902,1.45962049,95.406,95.305,0.45]
[1643557757102,1.45962049,95.406,95.305,0.2]
[1643557757305,1.70962049,95.405,95.305,0.2]
[1643557757508,104.9,95.403,95.305,0.2]
[1643557757705,104.9,95.403,95.31,15.74]
[1643557757906,104.9,95.403,95.311,0.2]
[1643557758307,1.45962049,95.402,95.311,0.2]
[1643557758531,1.45962049,95.402,95.305,0.45]
[1643557758733,40.69321031,95.389,95.305,0.45]
[1643557758930,128.1186,95.388,95.305,0.45]
[1643557760228,128.1186,95.388,95.305,0.2]
[1643557760428,1.45962049,95.383,95.283,0.2]
[1643557760630,128.1186,95.388,95.283,0.2]
[1643557760631,1.45962049,95.378,95.283,0.2]
[1643557760829,104.9,95.376,95.283,0.2]
[1643557761330,0.25,95.375,95.283,0.2]
[1643557761630,1.45962049,95.37,95.263,1.43736121]
[1643557761828,1.45962049,95.368,95.261,1.43736121]
[1643557762028,1.45962049,95.367,95.26,1.43736121]
[1643557762228,1.45962049,95.367,95.27,15.745]
[1643557762428,24.0419,95.366,95.271,24.814]
[1643557762631,24.0419,95.366,95.272,0.2]
[1643557763029,24.0419,95.366,95.281,6.0]
[1643557763030,104.9,95.365,95.281,6.0]
[1643557763229,104.9,95.365,95.282,24.7743]
[1643557763430,104.9,95.365,95.283,0.2]
[1643557764830,15.14,95.36,95.283,0.2]
[1643557765031,42.83808479,95.359,95.283,0.2]
[1643557765233,43.08808479,95.359,95.254,24.9763]
[1643557765431,43.08808479,95.359,95.255,0.2]
[1643557765832,104.9,95.358,95.264,6.0]
[1643557766031,104.9,95.358,95.265,30.347]
[1643557766231,104.9,95.358,95.266,0.2]
[1643557766432,104.9,95.358,95.266,6.2]
[1643557766632,104.9,95.358,95.276,6.0]
[1643557766833,104.9,95.358,95.277,24.5697]
[1643557767032,15.14,95.36,95.287,6.0]
[1643557767233,207.719654,95.41,95.287,6.0]
[1643557767234,15.14,95.38,95.288,24.3197]
[1643557767435,204.82,95.41,95.288,24.3197]
[1643557767436,1.45962049,95.396,95.289,23.2263]
[1643557767634,1.45962049,95.397,95.3,15.74]
[1643557767837,104.9,95.388,95.301,24.9338]
[1643557768034,104.9,95.388,95.311,6.0]
[1643557768332,0.25,95.386,95.312,24.7338]
[1643557768533,0.25,95.386,95.313,0.2]
[1643557768934,1.45962049,95.404,95.313,0.2]
[1643557769133,1.45962049,95.405,95.314,2.27529085]